{"text_format":"3","workbook":"xlsx","n_sheets":8,"sheets":["COVER","PREAMBLES","PRELIMINARIES","SHE","ELECTRICAL BOQ","ESKOM AIR-CON SCHEDULE","FINAL SUMMARY","NEC3 CONTRACT"],"not_rendered":{"images":40,"defined_names":15},"read":"whole","date_system":"1900"}

{"sheet":"COVER","index":0,"n_rows":41,"n_cols":9,"rows_kept":41,"merged":[[2,8,2,11],[18,1,18,11],[27,8,27,9],[40,8,40,10]]}
[]
[]
[{"$nulls":8},"TRANSMISSION FACILITIES"]
{"$rows_empty":15}
[null,"*Where the word \"Bill Of Quantities\" is used it shall mean Price Schedule"]
[]
[]
[null,"CONTRACT NUMBER",{"$nulls":5},": "]
[]
[]
[null,"CONTRACTOR",{"$nulls":5},":"]
[]
[]
[null,"CONTRACT AMOUNT ",{"$nulls":5},":","Not applicable"]
[null,"(Excluding VAT)",{"$nulls":6},"(Contract is rates based)"]
[]
[]
[null,"AUTHORISED SIGNATORY NAME",{"$nulls":5},":"]
[]
[]
[null,"DESIGNATION",{"$nulls":5},":","SERVICE MANAGER"]
[]
[]
[null,"AUTHORISED SIGNATURE",{"$nulls":5},":"]
[]
[]
[null,"DATE",{"$nulls":5},":"]

{"sheet":"PREAMBLES","index":1,"n_rows":172,"n_cols":1,"rows_kept":172}
[]
[]
["PREAMBLES"]
[]
["MATERIALS AND WORKMANSHIP"]
[]
["Supplied materials"]
[]
["Material supplied for work on site should be SABS approved."]
[]
[]
["Security - Works Information"]
[]
["The Service Provider shall take all appropriate measures for general security of their materials and shall ensure that the following requirements are adhered to at all times: "]
[]
["a) All workers to be in identifiable company PPE"]
[]
["b) The following items will not be allowed on site:"]
[]
["i) Fire arms or other dangerous weapons"]
["ii) Explosives"]
["iii) Liquor"]
["iv) Narcotic drugs"]
[]
["The employees of the service provider shall be subjected to security check."]
[]
["The Service Provider must ensure at all times that the compliance with regards to safety and protection of the employers property are adhered to"]
[]
["Disturbance"]
[]
["The Service Provider must execute the Works with a minimum and acceptable of disturbance to premises."]
[]
["Works cleaning and clearing"]
[]
["The Service Provider shall regularly clean and clear away all rubbish and excess materials as the Works proceed and leave the Works in a clean and satisfactory state for use and occupation in and satisfactory state for use and occupation in terms of the agreement. "]
[]
["Occupational Health and Safety Act"]
[]
["The Service Provider shall for the duration of this contract be deemed to be the mandatory Eskom for the purposes of the Occupational Health and Safety Act No. 85 of 1993, and he shall prior to taking occupation of the site satisfy Eskom by means of written representations that he has fully compiled with the relevant requirements of the said act."]
[]
["Acceptance by Eskom of the Service Provider's written representations in terms of the above shall constitute an agreement in writing to the arrangements and procedures between the parties to ensure compliance by the Contractor with the provision of the act referred to therein, for the purpose of section 37(2) of the said act."]
[]
["Eskom shall at all times have the right to summarily suspend the performance of the Contractor hereunder pending compliance by the Contractor with any requirement, regulation and direction referred to."]
[]
["Eskom shall be entitled to set off against any amount owed by Eskom to the service provider hereunder any loss or damage suffered by it as a result of the suspension of the contractors performance in the circumstances envisaged above."]
[]
["The tenderer shall price for all necessary items to comply with the Occupational Health and Safety Act Specification."]
[]
["SUPPLEMENTARY DOCUMENTATION"]
[]
["Labour Record"]
[]
["At the end of each week the Service Provider shall provide the Eskom Tx Facilities Official with a written record, in schedule form, reflecting the number and description of tradesmen and labourers employed by him and all Sub-Contractors on the Works each day. "]
[]
["Unauthorised Persons/ Workmen on Premises"]
[]
["The Service Provider shall at all times strictly exclude all unauthorised persons from the Works and the site."]
[]
["Safety Helmets and Protective Clothing"]
[]
["The Service Provider shall take all necessary steps to ensure that all workmen employed on the Works comply with regulations regarding the wearing of appropriate PPE "]
[]
["GENERAL"]
[]
["Commodities to be New"]
[]
["All commodities, goods, articles or materials throughout the building are to be new so as to ensure that they are likewise in perfect condition when handed over at completion of the Work. "]
[]
["Standard of Workmanship and Materials"]
[]
["In the absence of detailed specifications for any item or items, National Building Regulations, the latest applicable South African Bureau of Standards Specification, or where such does not exist, then the latest applicable British Standard Specification shall apply. "]
[]
[]
["Removal and Making Good of Temporary Works, etc., on Completion"]
[]
["The Service Provider shall remove all temporary Works, roads, services and the like used for this maintenance services and the like used for this Contract and shall make good to the entire satisfaction of the Eskom Tx Facilities Official any damage resulting therefrom."]
[]
["Signage"]
[]
["All warning signage must be in English"]
[]
["Contractors Responsibility"]
[]
["The Employer, the Eskom Tx Facilities Official and the other professional consultants shall not be responsible for any act or omission on the part of the Contractor which may result in any patent or latent defects, in materials or workmanship, breach or neglect of any local regulations.  The Service Provider shall at times be responsible for any such neglect, deviation or wrong act, whether the same discovered before or after the final certificate, or any other Certificate, has been is approved."]
[]
["Overtime"]
[]
["Should overtime be required to be worked for any reason whatsoever, the costs of such overtime are to be borne by the Service Provider unless the Eskom Tx Facilities Official has specifically authorized in writing, prior to the execution thereof, that costs for such overtime are to be borne by the Employer."]
[]
["Special Works/Direct Contracts"]
[]
["The Employer shall have the right to employ other Contractors (hereinafter referred to as 'Direct Contractors') to execute any special or other  Works whether contained in this Contract or not, concurrently with the work  being executed under this contract."]
[]
["The Service Provider shall not be entitled to any percentage, profit or discount on the value of any work executed by 'Direct Contractor's . The Service Provider shall allow Direct Contractors, etc., to use, free of charge, the latrine accommodation and water and power supply on the site, and shall not in any way hinder or prevent the execution of their work."]
[]
["Guarantees and Maintenance Manuals"]
[]
["The Service Provider shall obtain and hand over to the Eskom Tx Facilities Official on Completion of any task or service, all relevant guarantees, any operating and maintenance instruction manuals, data or instructions required by the Eskom Tx Facilities Official or provided by manufacturer's, suppliers or Sub-Contractors."]
[]
["The Service Provider shall ensure that all warranties and guarantees received are fully ceded to the Employer."]
[]
["The supply of all materials are deemed to include the following:"]
[]
["Transport, conveying, cartage, carriage and delivery, etc."]
[]
["Taking delivery, unloading, storing, unpacking, hoisting or lowering and handling"]
["All applicable import taxes and duties."]
[]
["All obligations arising out of the Provisional Bills of Quantities, and all costs and charges deemed necessary for complying with the terms and conditions herein."]
[" "]
["Removal and Making Good of Temporary Works, etc., on Completion"]
[" "]
["Making Good"]
[]
[" All materials and workmanship in building up, making good, etc., are to match existing and where new materials abut existing, they are to be neatly jointed to same. "]
[" "]
[" 'Making good' existing work where disturbed or damaged shall mean the provision of the necessary new material to match existing and the necessary workmanship so that a complete restoration is achieved to the satisfaction of the Eskom Tx Facilities Official."]
[" "]
["Making good' where abutting walls, etc., are removed, shall mean the provision of the necessary material and workmanship in filling the gaps to match surrounding finishes so that a complete and perfect surface, continuous with surrounding surfaces and matching of same, is obtained to the Eskom Tx Facilities Official's satisfaction."]
[" "]
["SHE requirements"]
[]
["The Service Provider shall take the necessary steps to ensure that all workmen employed on the Works comply with regulations regarding the wearing of Personal Protective Equipment as per Eskom's PPE Matrix."]
[]
["The Service Provider will provide mandatory OHS Training to all workmen before the commencement of the works. All Workers employed during the contract shall also receive training before gaining access to the site. e.g. SHE Representative, First Aid, Fire Fighting, risk assessment."]
[]
["The Service Provider shall provide task specific training to his employees where a specific task is to be undertaken during the works period e.g. Working at heights, Supervisory (OHS legal liability)."]
[]
["The Service Provider shall take the necessary provisions for an emergency. This includes First aid boxes, fire extinguisher and emergency alarm in the case of an emergency on site. These essentials must be stored in places that are easily accessible. "]
[]
["The Service Provider must take the necessary steps to manage Incidents that occur on site. (meetings, training)"]
[]
["SUPPLEMENTARY PREAMBLES"]
[]
["Refer to conditions of Eskom Term Service Short Contract, attached. "]
["ALL ELECTRICAL CONTRACTORS THAT WISH TO TENDER AGAINST THIS ENQUIRY WILL HAVE TO BE REGISTERED WITH LABOUR DEPARTMENT AS AN ELECTRICAL CONTRACTOR. THE REGISTRATION HAS TO BE IN THE NAME OF THE TENDERING CONTRACTOR AS PER THE OCCUPATIONAL HEALTH AND SAFETY ACT, 1993 (Act no 95 of 1993). THE REGISTERED PERSON (INSTALLATION ELECTRICIAN OR MASTER ELECTRICIAN – NOT SINGLE PHASE ELECTRICIAN) SHALL BE EMPLOYED IN A FULL TIME CAPACITY, OR THE CONTRACTOR, HIMSELF/HERSELF TO BE A REGISTERED PERSON. THE PROOF THEREOF TO BE INCLUDED IN THE TENDER DOCUMENTS."]
["ALSO INCLUDE THE PROOF OF QUALIFICATIONS OF ELECTRICAL PERSONNEL ON SITE AT TENDER STAGE."]
["NOTE. The  complete  electrical  installation, alteration, addition to  comply  with the  relevant  clauses  of  the  SABS  Code  of  Practise  for  the Wiring  of  Premises  SANS10142  -  1:2003  (previously  SABS 0142) and “specialized electrical installations” meaning electrical installations in  \n\n  (a)  explosive atmospheres as contemplated in SANS1086-1;  \n\n  (b)   the petroleum industry as contemplated in SANS1089-2;\n\n  (c)  hazardous locations as contemplated in SANS10108;\n\n  (d)   medical locations as contemplated in SANS10142-1; where applicable and requested on a as and when required basis.\n\n"]
[]
["All  equipment,  electrical  materials  or  methods  of  installation shall  comply  fully  with  SABS  0142-1  as  published  December 2001"]
[]
["Overtime work and normal work:"]
[]
["The tenderers are advised that the following works may be done during normal working hours as well as after normal working hours. Tenderers must make due allowance for these working hours in the pricing as no claims will be entertained in this regard."]
[]
["COC Certificate:"]
[]
["Tenderers are advised that any work completed by the electrical contractor or sub-contractor must be supported by a COC Certificatewhere applicable according to OCCUPATIONAL HEALTH AND SAFETY ACT, 1993 ELECTRICAL INSTALLATION REGULATIONS to the approval of the Eskom Tx Facilities Official"]
[]
["Rate Approvals:"]
[]
["The tenderer is advised that any rate that is required for new work must include the following breakdown:"]
[]
["Rate approvals must be authorised by the Eskom Tx Facilities Official prior to work being carried out."]
[]
["RATES ARE TO BE FIXED FOR THE DURATION OF THE CONTRACT PERIOD."]
[]
["ESKOM   HOLDINGS SOC LIMITED CANNOT GUARANTEE ANY QUANTITIES OR VOLUME OF WORK DURING THE CONTRACT PERIOD."]
[]
["THE QUANTITIES ABOVE ARE BASED ON AN ANNUAL USAGE AND WILL BE PURCHASED ON AN AS AND WHEN REQUIRED BASIS. A TASK ORDER WILL BE SUPPLIED WITH EACH TASK."]
[]
["Proprietary items or materials:"]
[]
["Proprietary items or materials where specified are to be of the brand  specified - or other approved - by the Eskom Tx Facilities Official"]
[]
["Tenderers are advised that all labour charges and transport charges must be procured from the closest to the effected site."]
[]
["Any call out work commenced during working hours and completed after normal working hours will be compensated by using normal working hour rates only."]
[]
["Any call out work commenced after normal working hours will be compensated by using after normal working hour rates only."]
[]
["Prior written approval must be received from the Eskom Tx Facilities Official prior to commencement of work."]

{"sheet":"PRELIMINARIES","index":2,"n_rows":113,"n_cols":7,"rows_kept":113}
["ITEM NO","DESCRIPTION","UNIT","QUANTITY","RATE","AMOUNT"]
[]
[]
[null,"SECTION NO. 1 "]
[null,"BILL NO. 1"]
[]
[null,"PRELIMINARIES AND GENERAL"]
[]
[null,"The following items should be priced under preliminaries and generals"]
[]
[null,"Scheduled fixed-charge"]
[]
[1.1,"Establishment of facilities on site ie. Site office, sheds, etc including removal on completion","Sum",1,null,{"$f":"D13*E13","v":{"v":0,"d":"0.00"}}]
[1.2,"Name Boards","Sum",1,null,{"v":0,"d":"0.00"}]
[]
[null,"Total carried to summary",{"$nulls":3},{"$f":"SUM(F13:F14)","v":{"v":0,"d":"0.00"}},{"$f":"SUM(G14:G14)","v":{"v":0,"d":"0.00"}}]
{"$rows_empty":96}
[{"$nulls":4},"R"]

{"sheet":"SHE","index":3,"n_rows":102,"n_cols":7,"rows_kept":102}
[null,"PAY REFERENCE","DESCRIPTION","UNIT","QTY","RATE","AMOUNT"]
[null,null,"SHE SCHEDULE"]
[]
[]
[null,null,"Supply of all items of Personal Protective Clothing/Equipment & ensure use thereof for full compliance"]
[]
[1,null,"Steel toe capped safety boots ","Once off",1,null,{"$f":"E7*F7","v":{"v":0,"d":"0.00"}}]
[]
[2,null,"Overall - 2 piece suit with luminous strap","Once off",1,null,{"$f":"E9*F9","v":{"v":0,"d":"0.00"}}]
[]
[3,null,"Gloves","Once off",1,null,{"$f":"E11*F11","v":{"v":0,"d":"0.00"}}]
[]
[4,null,"Hard hats with adjustable 3 point webbing chin strap as per SANS 1397","Once off",1,null,{"$f":"E13*F13","v":{"v":0,"d":"0.00"}}]
[]
[5,null,"Ear protection (earplugs etc.)","Once off",1,null,{"$f":"E15*F15","v":{"v":0,"d":"0.00"}}]
[]
[6,null,"Eye protection appropriate to task performed","Once off",1,null,{"$f":"E17*F17","v":{"v":0,"d":"0.00"}}]
[]
[7,null,"Dust Mask","Once off",1,null,{"$f":"E19*F19","v":{"v":0,"d":"0.00"}}]
[]
[8,null,"Luminous high visibility safety vests","Once off",1,null,{"$f":"E21*F21","v":{"v":0,"d":"0.00"}}]
[]
[9,null,"Sunbrim/ Soft hat","Once off",1,null,{"$f":"E23*F23","v":{"v":0,"d":"0.00"}}]
[]
[10,null,"Balaclava","Once off",1,null,{"$f":"E25*F25","v":{"v":0,"d":"0.00"}}]
[]
[11,null,"Winter PPE when required","Once off",1,null,{"$f":"E27*F27","v":{"v":0,"d":"0.00"}}]
[]
[12,null,"Others(specify)"]
[]
[null,null,"i)"]
[null,null,"ii)"]
[null,null,"iii)"]
[]
[null,null,"Supply and provision of Equipment for working at Heights & ensure use thereof for full compliance to OHS ACT and Eskom's SHE spec"]
[]
[1,null,"Double lanyard harness","SUM",1,null,{"$f":"E37*F37","v":{"v":0,"d":"0.00"}}]
[]
[2,null,"Evaluation of physical and psychological fitness of personnel working at heights","SUM",1,null,{"$f":"E39*F39","v":{"v":0,"d":"0.00"}}]
[]
[3,null,"Scaffolding access ladders ","SUM",1,null,{"$f":"E41*F41","v":{"v":0,"d":"0.00"}}]
[]
[4,null,"Portable Ladders","SUM",1,null,{"$f":"E43*F43","v":{"v":0,"d":"0.00"}}]
[]
[5,null,"Rescue Kit","SUM",1,null,{"$f":"E45*F45","v":{"v":0,"d":"0.00"}}]
[]
[6,null,"Mobile lift/ E asy access","Sum",1,null,{"$f":"E47*F47","v":{"v":0,"d":"0.00"}}]
[]
[null,null,"Barricading"]
[]
[1,null,"Supply, erection and maintenance of all temporary fencing with solid barricading and which would be required during maintenance to make the site safe in accordance with the OSH Act, SHE spec and CEMPr.","Once off",1,null,{"$f":"E51*F51","v":{"v":0,"d":"0.00"}}]
[]
[null,null,"Compliance"]
[]
[1,null,"Provision of all signage in terms of latest revision legislation","SUM",1,null,{"$f":"E55*F55","v":{"v":0,"d":"0.00"}}]
[]
[null,null,"Human Resources"]
[]
[1,null,"Health & Safety Representative","Once off",1,null,{"$f":"E59*F59","v":{"v":0,"d":"0.00"}}]
[]
[2,null,"Fall Protection Plan Developer","Once off",1,null,{"$f":"E61*F61","v":{"v":0,"d":"0.00"}}]
[]
[3,null,"Fall Protection Rescue","Once off",1,null,{"$f":"E63*F63","v":{"v":0,"d":"0.00"}}]
[]
[null,null,"Occupational Hygiene"]
[]
[1,null,"Health Risk Assessment","Once off",1,null,{"$f":"E67*F67","v":{"v":0,"d":"0.00"}}]
[]
[2,null,"Occupational Hygiene Surveys","Once off",1,null,{"$f":"E69*F69","v":{"v":0,"d":"0.00"}}]
[]
[3,null,"Ergonomics","Once off",1,null,{"$f":"E71*F71","v":{"v":0,"d":"0.00"}}]
[]
[null,null,"Occupational Health"]
[]
[1,null,"Pre-employment medical screening","Once off",1,null,{"$f":"E75*F75","v":{"v":0,"d":"0.00"}}]
[]
[2,null,"Exit Medical Screening","Once off",1,null,{"$f":"E77*F77","v":{"v":0,"d":"0.00"}}]
[]
[null,null,"Training"]
[]
[1,null,"Legal liability for Supervisors/Supervisory course.","Once off",1,null,{"$f":"E81*F81","v":{"v":0,"d":"0.00"}}]
[]
[3,null,"First aider level 2","Once off",1,null,{"$f":"E83*F83","v":{"v":0,"d":"0.00"}}]
[]
[4,null,"Basic fire","Once off",1,null,{"$f":"E85*F85","v":{"v":0,"d":"0.00"}}]
[]
[5,null,"RCAT/ Incident Investigation","Once off",1,null,{"$f":"E87*F87","v":{"v":0,"d":"0.00"}}]
[]
[6,null,"HIRA","Once off",1,null,{"$f":"E89*F89","v":{"v":0,"d":"0.00"}}]
[]
[null,null,"Environmental Measurement and Payment as per the Site Information"]
[]
[1,null,"Environmental management system","Once off",1,null,{"$f":"E93*F93","v":{"v":0,"d":"0.00"}}]
[]
[2,null,"Fire management and control measures","Once off",1,null,{"$f":"E95*F95","v":{"v":0,"d":"0.00"}}]
[]
[null,null,"Waste Management  ( Costs associated with the management of general, hazardous waste, etc.)"]
[]
[1,null,"Hazardous waste transportation and disposal at a registered facility","Once off",1,null,{"$f":"E99*F99","v":{"v":0,"d":"0.00"}}]
[]
[]
[{"$nulls":6},{"$f":"SUM(G7:G100)","v":{"v":0,"d":"0.00"}}]

{"sheet":"ELECTRICAL BOQ","index":4,"n_rows":22,"n_cols":6,"rows_kept":22}
["Item",null,"Unit","Quantity","Rate ","Amount"]
[null,"SECTION NO: 2 ELECTRICAL"]
[null,"BILL NO 2"]
[]
[1,"Work to be done from Monday to Friday between 7:30am and 4pm:"]
[]
[1.1,"Master Instalation Electrician","Hr",1,null,{"$f":"D7*E7","v":0}]
[]
[1.2,"Installation Electrician (also Supervisor)","Hr",1,null,{"$f":"D9*E9","v":0}]
[]
[1.3,"Qualified Electrician (Artisan)","Hr",1,null,{"$f":"D11*E11","v":0}]
[]
[1.4,"Electrician Assistant","Hr",1,null,{"$f":"D13*E13","v":0}]
[]
[1.6,"Safety officer","Hr",1,null,{"$f":"D15*E15","v":0}]
[]
[]
["5","Materials"]
["5.1","Provisional Sum of R XXXXX for the supply of required material according to SM's instruction for electrical works maintanance including earth leakage units,interior lighting and light switches, exterior lights, power skirtings, socket outlets, light shades, light covers, diffusors, perimeter lights, security lights, emergency lighting, cables, cable trays and etc.","Sum",1,null,{"$f":"D19*E19","v":0}]
[]
[null,"Total carried to summary",{"$nulls":3},{"$f":"SUM(F7:F20)","v":0}]
["Do not price item  5.1"]

{"sheet":"ESKOM AIR-CON SCHEDULE","index":5,"n_rows":571,"n_cols":9,"rows_kept":571,"hidden":true}
{"$rows_empty":51}
[{"$nulls":8},1]
{"$rows_empty":51}
[{"$nulls":8},2]
{"$rows_empty":51}
[{"$nulls":8},3]
{"$rows_empty":51}
[{"$nulls":8},4]
{"$rows_empty":51}
[{"$nulls":8},5]
{"$rows_empty":51}
[{"$nulls":8},6]
{"$rows_empty":51}
[{"$nulls":8},7]
{"$rows_empty":51}
[{"$nulls":8},8]
{"$rows_empty":51}
[{"$nulls":8},9]
{"$rows_empty":51}
[{"$nulls":8},10]
{"$rows_empty":50}
[{"$nulls":8},11]

{"sheet":"FINAL SUMMARY","index":6,"n_rows":29,"n_cols":7,"rows_kept":29,"merged":[[1,0,1,6],[2,0,2,6],[3,0,3,6],[5,0,5,6],[17,2,19,3],[28,0,29,6]]}
[]
["ESKOM HOLDINGS SOC LIMITED"]
["PRICING SCHEDULE FOR THE ELECTRICAL MAINTENANCE AT GRAND CENTRAL AIRPORT."]
[]
[]
["FINAL SUMMARY"]
[]
[]
[null,"Bill No.","CORE TECHNICAL SERVICES",null,"Page",null,"Amount"]
[]
[null,1,"PRELIMINARIES AND GENERALS",null,"1: 1-7","R",{"$f":"PRELIMINARIES!F16","v":{"v":0,"d":"0.00"}}]
[]
[null,2,"SHE",{"$nulls":3},{"$f":"SHE!G102","v":{"v":0,"d":"0.00"}}]
[]
[null,3,"ELECTRICAL REPAIRS AND MAINTENANCE",null,"2: 1-7","R",{"$f":"'ELECTRICAL BOQ'!F21","v":{"v":0,"d":"0.00"}}]
[]
[null,null,"Sub-Total",null,null,"R",{"$f":"SUM(G10:G16)","v":{"v":0,"d":"0.00"}}]
[null,null,"Allow 5% Contingencies on the above total to be used at the discretion of the Contracts Manager and deducted in part if so required."]
[{"$nulls":5},"R",{"$f":"G17*0.05","v":{"v":0,"d":"0.00"}}]
[]
[null,null,"Sub-Total",null,null,"R",{"$f":"+G17+G19","v":{"v":0,"d":"0.00"}}]
[null,null,"ADD:"]
[null,null,"14% VAT",null,null,"R",{"$f":"G21*0.14","v":{"v":0,"d":"0.00"}}]
[]
[null,null,"TOTAL CARRIED TO FORM OF OFFER ",null,null,"R",{"$f":"+G21+G23","v":{"v":0,"d":"0.00"}}]
[]
[]
[]
["This schedule provides a summary of the total value of all the sections and remains the responsibility of the contractor to ensure the accuracy of the amount carried to the summary."]

{"sheet":"NEC3 CONTRACT","index":7,"n_rows":0,"n_cols":0,"rows_kept":0,"hidden":true}